Workbook

Sheet 婚禮預算
B2: 雅婷 + 家豪 結婚
B5: 類別 | C5: 預估花費 | D5: 實際花費 | E5: 差異 | F5: 預算 % | J5: 未排序 | K5: 預估費用 | L5: 實際費用 | M5: 預估費用 - 排名值 | N5: 排名 | O5: # | P5: 已排序
B6: =P6 -> 接待處 | C6: =VLOOKUP(TBL_Summary[[#This Row],[類別]],TBL_RankingData,2,FALSE) -> NT$14,500 | D6: =IF(VLOOKUP(TBL_Summary[[#This Row],[類別]],TBL_RankingData,3,FALSE)=0,"",VLOOKUP(TBL_Summary[[#This Row],[類別]],TBL_RankingData,3,FALSE)) -> NT$12,800 | E6: =IF(OR(TBL_Summary[[#This Row],[預估花費]]="",TBL_Summary[[#This Row],[實際花費]]=""),"",TBL_Summary[[#This Row],[預估花費]]-TBL_Summary[[#This Row],[實際花費]]) -> NT$1,700 | F6: =TBL_Summary[[#This Row],[預估花費]]/SUM(TBL_Summary[預估花費]) -> 48.7% | J6: 接待處 | K6: =TBL_Reception[[#Totals],[預估]] -> 14500 | L6: =TBL_Reception[[#Totals],[實際]] -> 12800 | M6: =K6-O6/100 -> 14499.99 | N6: =_xlfn.RANK.AVG(M6,$M$6:$M$15) -> 1 | O6: 1 | P6: =INDEX(TBL_RankingData,MATCH(O6,$N$6:$N$15,0),1) -> 接待處
B7: =P7 -> 服裝 | C7: =VLOOKUP(TBL_Summary[[#This Row],[類別]],TBL_RankingData,2,FALSE) -> NT$4,000 | D7: =IF(VLOOKUP(TBL_Summary[[#This Row],[類別]],TBL_RankingData,3,FALSE)=0,"",VLOOKUP(TBL_Summary[[#This Row],[類別]],TBL_RankingData,3,FALSE)) -> NT$2,900 | E7: =IF(OR(TBL_Summary[[#This Row],[預估花費]]="",TBL_Summary[[#This Row],[實際花費]]=""),"",TBL_Summary[[#This Row],[預估花費]]-TBL_Summary[[#This Row],[實際花費]]) -> NT$1,100 | F7: =TBL_Summary[[#This Row],[預估花費]]/SUM(TBL_Summary[預估花費]) -> 13.4% | J7: 服裝 | K7: =TBL_Attire[[#Totals],[預估]] -> 4000 | L7: =TBL_Attire[[#Totals],[實際]] -> 2900 | M7: =K7-O7/100 -> 3999.98 | N7: 2 | O7: 2 | P7: 服裝
B8: 花與佈置裝飾 | C8: =VLOOKUP(TBL_Summary[[#This Row],[類別]],TBL_RankingData,2,FALSE) -> NT$3,000 | D8: =IF(VLOOKUP(TBL_Summary[[#This Row],[類別]],TBL_RankingData,3,FALSE)=0,"",VLOOKUP(TBL_Summary[[#This Row],[類別]],TBL_RankingData,3,FALSE)) ->  | E8: =IF(OR(TBL_Summary[[#This Row],[預估花費]]="",TBL_Summary[[#This Row],[實際花費]]=""),"",TBL_Summary[[#This Row],[預估花費]]-TBL_Summary[[#This Row],[實際花費]]) ->  | F8: =TBL_Summary[[#This Row],[預估花費]]/SUM(TBL_Summary[預估花費]) -> 10.1% | J8: 花與佈置裝飾 | K8: =TBL_FlowersAndDecor[[#Totals],[預估]] -> 3000 | L8: =TBL_FlowersAndDecor[[#Totals],[實際]] -> 0 | M8: 2999.97 | N8: 3 | O8: 3 | P8: 花與佈置裝飾
B9: 相片和影片 | C9: =VLOOKUP(TBL_Summary[[#This Row],[類別]],TBL_RankingData,2,FALSE) -> NT$2,500 | D9: =IF(VLOOKUP(TBL_Summary[[#This Row],[類別]],TBL_RankingData,3,FALSE)=0,"",VLOOKUP(TBL_Summary[[#This Row],[類別]],TBL_RankingData,3,FALSE)) ->  | E9: =IF(OR(TBL_Summary[[#This Row],[預估花費]]="",TBL_Summary[[#This Row],[實際花費]]=""),"",TBL_Summary[[#This Row],[預估花費]]-TBL_Summary[[#This Row],[實際花費]]) ->  | F9: =TBL_Summary[[#This Row],[預估花費]]/SUM(TBL_Summary[預估花費]) -> 8.4% | J9: 音樂 | K9: =TBL_Music[[#Totals],[預估]] -> 1800 | L9: =TBL_Music[[#Totals],[實際]] -> 0 | M9: 1799.96 | N9: 5 | O9: 4 | P9: 相片和影片
B10: 音樂 | C10: =VLOOKUP(TBL_Summary[[#This Row],[類別]],TBL_RankingData,2,FALSE) -> NT$1,800 | D10: =IF(VLOOKUP(TBL_Summary[[#This Row],[類別]],TBL_RankingData,3,FALSE)=0,"",VLOOKUP(TBL_Summary[[#This Row],[類別]],TBL_RankingData,3,FALSE)) ->  | E10: =IF(OR(TBL_Summary[[#This Row],[預估花費]]="",TBL_Summary[[#This Row],[實際花費]]=""),"",TBL_Summary[[#This Row],[預估花費]]-TBL_Summary[[#This Row],[實際花費]]) ->  | F10: =TBL_Summary[[#This Row],[預估花費]]/SUM(TBL_Summary[預估花費]) -> 6.1% | J10: 相片和影片 | K10: =TBL_PhotographsAndVideo[[#Totals],[預估]] -> 2500 | L10: =TBL_PhotographsAndVideo[[#Totals],[實際]] -> 0 | M10: 2499.95 | N10: 4 | O10: 5 | P10: 音樂
B11: 回禮和禮物 | C11: =VLOOKUP(TBL_Summary[[#This Row],[類別]],TBL_RankingData,2,FALSE) -> NT$1,100 | D11: =IF(VLOOKUP(TBL_Summary[[#This Row],[類別]],TBL_RankingData,3,FALSE)=0,"",VLOOKUP(TBL_Summary[[#This Row],[類別]],TBL_RankingData,3,FALSE)) ->  | E11: =IF(OR(TBL_Summary[[#This Row],[預估花費]]="",TBL_Summary[[#This Row],[實際花費]]=""),"",TBL_Summary[[#This Row],[預估花費]]-TBL_Summary[[#This Row],[實際花費]]) ->  | F11: =TBL_Summary[[#This Row],[預估花費]]/SUM(TBL_Summary[預估花費]) -> 3.7% | J11: 回禮和禮物 | K11: =TBL_FavorsAndGifts[[#Totals],[預估]] -> 1100 | L11: =TBL_FavorsAndGifts[[#Totals],[實際]] -> 0 | M11: 1099.94 | N11: 6 | O11: 6 | P11: 回禮和禮物
B12: =P12 -> 結婚戒指 | C12: =VLOOKUP(TBL_Summary[[#This Row],[類別]],TBL_RankingData,2,FALSE) -> NT$1,100 | D12: =IF(VLOOKUP(TBL_Summary[[#This Row],[類別]],TBL_RankingData,3,FALSE)=0,"",VLOOKUP(TBL_Summary[[#This Row],[類別]],TBL_RankingData,3,FALSE)) ->  | E12: =IF(OR(TBL_Summary[[#This Row],[預估花費]]="",TBL_Summary[[#This Row],[實際花費]]=""),"",TBL_Summary[[#This Row],[預估花費]]-TBL_Summary[[#This Row],[實際花費]]) ->  | F12: =TBL_Summary[[#This Row],[預估花費]]/SUM(TBL_Summary[預估花費]) -> 3.7% | J12: 典禮 | K12: =TBL_Ceremony[[#Totals],[預估]] -> 800 | L12: =TBL_Ceremony[[#Totals],[實際]] -> 0 | M12: 799.93 | N12: 8 | O12: 7 | P12: 結婚戒指
B13: 典禮 | C13: =VLOOKUP(TBL_Summary[[#This Row],[類別]],TBL_RankingData,2,FALSE) -> NT$800 | D13: =IF(VLOOKUP(TBL_Summary[[#This Row],[類別]],TBL_RankingData,3,FALSE)=0,"",VLOOKUP(TBL_Summary[[#This Row],[類別]],TBL_RankingData,3,FALSE)) ->  | E13: =IF(OR(TBL_Summary[[#This Row],[預估花費]]="",TBL_Summary[[#This Row],[實際花費]]=""),"",TBL_Summary[[#This Row],[預估花費]]-TBL_Summary[[#This Row],[實際花費]]) ->  | F13: =TBL_Summary[[#This Row],[預估花費]]/SUM(TBL_Summary[預估花費]) -> 2.7% | J13: 信箋 | K13: =TBL_Stationery[[#Totals],[預估]] -> 500 | L13: =TBL_Stationery[[#Totals],[實際]] -> 0 | M13: 499.92 | N13: 9 | O13: 8 | P13: 典禮
B14: 信箋 | C14: =VLOOKUP(TBL_Summary[[#This Row],[類別]],TBL_RankingData,2,FALSE) -> NT$500 | D14: =IF(VLOOKUP(TBL_Summary[[#This Row],[類別]],TBL_RankingData,3,FALSE)=0,"",VLOOKUP(TBL_Summary[[#This Row],[類別]],TBL_RankingData,3,FALSE)) ->  | E14: =IF(OR(TBL_Summary[[#This Row],[預估花費]]="",TBL_Summary[[#This Row],[實際花費]]=""),"",TBL_Summary[[#This Row],[預估花費]]-TBL_Summary[[#This Row],[實際花費]]) ->  | F14: =TBL_Summary[[#This Row],[預估花費]]/SUM(TBL_Summary[預估花費]) -> 1.7% | J14: 結婚戒指 | K14: =TBL_WeddingRings[[#Totals],[預估]] -> 1100 | L14: =TBL_WeddingRings[[#Totals],[實際]] -> 0 | M14: 1099.91 | N14: 7 | O14: 9 | P14: 信箋
B15: 交通 | C15: =VLOOKUP(TBL_Summary[[#This Row],[類別]],TBL_RankingData,2,FALSE) -> NT$450 | D15: =IF(VLOOKUP(TBL_Summary[[#This Row],[類別]],TBL_RankingData,3,FALSE)=0,"",VLOOKUP(TBL_Summary[[#This Row],[類別]],TBL_RankingData,3,FALSE)) ->  | E15: =IF(OR(TBL_Summary[[#This Row],[預估花費]]="",TBL_Summary[[#This Row],[實際花費]]=""),"",TBL_Summary[[#This Row],[預估花費]]-TBL_Summary[[#This Row],[實際花費]]) ->  | F15: =TBL_Summary[[#This Row],[預估花費]]/SUM(TBL_Summary[預估花費]) -> 1.5% | J15: 交通 | K15: =TBL_Transportation[[#Totals],[預估]] -> 450 | L15: =TBL_Transportation[[#Totals],[實際]] -> 0 | M15: 449.9 | N15: 10 | O15: 10 | P15: 交通
B16: 合計 | C16: =SUBTOTAL(109,TBL_Summary[預估花費]) -> NT$29,750 | D16: =SUBTOTAL(109,TBL_Summary[實際花費]) -> NT$15,700 | E16: =TBL_Summary[[#Totals],[預估花費]]-TBL_Summary[[#Totals],[實際花費]] -> NT$14,050 | F16: =SUBTOTAL(109,TBL_Summary[預算 %]) -> 100%

Sheet 預算詳細資料
B2: 預算詳細資料
B4: 接待處 | C4: 預估 | D4: 實際 | E4: 差異
B5: 場地和租金 | C5: NT$8,000.00 | D5: NT$7,800.00 | E5: =IF(OR(TBL_Reception[[#This Row],[預估]]="",TBL_Reception[[#This Row],[實際]]=""),"",TBL_Reception[[#This Row],[預估]]-TBL_Reception[[#This Row],[實際]]) -> NT$200.00
B6: 餐點和服務 | C6: NT$4,000.00 | D6: NT$4,200.00 | E6: =IF(OR(TBL_Reception[[#This Row],[預估]]="",TBL_Reception[[#This Row],[實際]]=""),"",TBL_Reception[[#This Row],[預估]]-TBL_Reception[[#This Row],[實際]]) -> (NT$200.00)
B7: 飲料 | C7: NT$1,000.00 | D7: NT$800.00 | E7: =IF(OR(TBL_Reception[[#This Row],[預估]]="",TBL_Reception[[#This Row],[實際]]=""),"",TBL_Reception[[#This Row],[預估]]-TBL_Reception[[#This Row],[實際]]) -> NT$200.00
B8: 蛋糕 | C8: NT$1,000.00 | E8: =IF(OR(TBL_Reception[[#This Row],[預估]]="",TBL_Reception[[#This Row],[實際]]=""),"",TBL_Reception[[#This Row],[預估]]-TBL_Reception[[#This Row],[實際]]) -> 
B9: 雜項費用 | C9: NT$500.00 | E9: =IF(OR(TBL_Reception[[#This Row],[預估]]="",TBL_Reception[[#This Row],[實際]]=""),"",TBL_Reception[[#This Row],[預估]]-TBL_Reception[[#This Row],[實際]]) -> 
B10: 婚宴總計 | C10: =SUBTOTAL(109,TBL_Reception[預估]) -> NT$14,500.00 | D10: =SUBTOTAL(109,TBL_Reception[實際]) -> NT$12,800.00 | E10: =TBL_Reception[[#Totals],[預估]]-TBL_Reception[[#Totals],[實際]] -> NT$1,700.00
B13: 服裝 | C13: 預估 | D13: 實際 | E13: 差異
B14: 西裝和/或禮服 | C14: NT$3,000.00 | D14: NT$2,900.00 | E14: =IF(OR(TBL_Attire[[#This Row],[預估]]="",TBL_Attire[[#This Row],[實際]]=""),"",TBL_Attire[[#This Row],[預估]]-TBL_Attire[[#This Row],[實際]]) -> NT$100.00
B15: 更換 | C15: NT$100.00 | E15: =IF(OR(TBL_Attire[[#This Row],[預估]]="",TBL_Attire[[#This Row],[實際]]=""),"",TBL_Attire[[#This Row],[預估]]-TBL_Attire[[#This Row],[實際]]) -> 
B16: 頭飾和頭紗 | C16: NT$200.00 | E16: =IF(OR(TBL_Attire[[#This Row],[預估]]="",TBL_Attire[[#This Row],[實際]]=""),"",TBL_Attire[[#This Row],[預估]]-TBL_Attire[[#This Row],[實際]]) -> 
B17: 首飾 | C17: NT$100.00 | E17: =IF(OR(TBL_Attire[[#This Row],[預估]]="",TBL_Attire[[#This Row],[實際]]=""),"",TBL_Attire[[#This Row],[預估]]-TBL_Attire[[#This Row],[實際]]) -> 
B18: 妝髮 | C18: NT$500.00 | E18: =IF(OR(TBL_Attire[[#This Row],[預估]]="",TBL_Attire[[#This Row],[實際]]=""),"",TBL_Attire[[#This Row],[預估]]-TBL_Attire[[#This Row],[實際]]) -> 
B19: 雜項費用 | C19: NT$100.00 | E19: =IF(OR(TBL_Attire[[#This Row],[預估]]="",TBL_Attire[[#This Row],[實際]]=""),"",TBL_Attire[[#This Row],[預估]]-TBL_Attire[[#This Row],[實際]]) -> 
B20: 服裝總計 | C20: =SUBTOTAL(109,TBL_Attire[預估]) -> NT$4,000.00 | D20: =SUBTOTAL(109,TBL_Attire[實際]) -> NT$2,900.00 | E20: =TBL_Attire[[#Totals],[預估]]-TBL_Attire[[#Totals],[實際]] -> NT$1,100.00
B23: 花卉與佈置 | C23: 預估 | D23: 實際 | E23: 差異
B24: 婚禮花卉佈置 | C24: NT$1,000.00 | E24: =IF(OR(TBL_FlowersAndDecor[[#This Row],[預估]]="",TBL_FlowersAndDecor[[#This Row],[實際]]=""),"",TBL_FlowersAndDecor[[#This Row],[預估]]-TBL_FlowersAndDecor[[#This Row],[實際]]) -> 
B25: 花童的花環和花籃 | C25: NT$500.00 | E25: =IF(OR(TBL_FlowersAndDecor[[#This Row],[預估]]="",TBL_FlowersAndDecor[[#This Row],[實際]]=""),"",TBL_FlowersAndDecor[[#This Row],[預估]]-TBL_FlowersAndDecor[[#This Row],[實際]]) -> 
B26: 戒枕 | C26: NT$100.00 | E26: =IF(OR(TBL_FlowersAndDecor[[#This Row],[預估]]="",TBL_FlowersAndDecor[[#This Row],[實際]]=""),"",TBL_FlowersAndDecor[[#This Row],[預估]]-TBL_FlowersAndDecor[[#This Row],[實際]]) -> 
B27: 花束 | C27: NT$500.00 | E27: =IF(OR(TBL_FlowersAndDecor[[#This Row],[預估]]="",TBL_FlowersAndDecor[[#This Row],[實際]]=""),"",TBL_FlowersAndDecor[[#This Row],[預估]]-TBL_FlowersAndDecor[[#This Row],[實際]]) -> 
B28: 襟花 | C28: NT$100.00 | E28: =IF(OR(TBL_FlowersAndDecor[[#This Row],[預估]]="",TBL_FlowersAndDecor[[#This Row],[實際]]=""),"",TBL_FlowersAndDecor[[#This Row],[預估]]-TBL_FlowersAndDecor[[#This Row],[實際]]) -> 
B29: 胸花 | C29: NT$200.00 | E29: =IF(OR(TBL_FlowersAndDecor[[#This Row],[預估]]="",TBL_FlowersAndDecor[[#This Row],[實際]]=""),"",TBL_FlowersAndDecor[[#This Row],[預估]]-TBL_FlowersAndDecor[[#This Row],[實際]]) -> 
B30: 接待處佈置裝飾 | C30: NT$300.00 | E30: =IF(OR(TBL_FlowersAndDecor[[#This Row],[預估]]="",TBL_FlowersAndDecor[[#This Row],[實際]]=""),"",TBL_FlowersAndDecor[[#This Row],[預估]]-TBL_FlowersAndDecor[[#This Row],[實際]]) -> 
B31: 燈光 | C31: NT$200.00 | E31: =IF(OR(TBL_FlowersAndDecor[[#This Row],[預估]]="",TBL_FlowersAndDecor[[#This Row],[實際]]=""),"",TBL_FlowersAndDecor[[#This Row],[預估]]-TBL_FlowersAndDecor[[#This Row],[實際]]) -> 
B32: 雜項費用 | C32: NT$100.00 | E32: =IF(OR(TBL_FlowersAndDecor[[#This Row],[預估]]="",TBL_FlowersAndDecor[[#This Row],[實際]]=""),"",TBL_FlowersAndDecor[[#This Row],[預估]]-TBL_FlowersAndDecor[[#This Row],[實際]]) -> 
B33: 花卉與佈置總計 | C33: =SUBTOTAL(109,TBL_FlowersAndDecor[預估]) -> NT$3,000.00 | D33: =SUBTOTAL(109,TBL_FlowersAndDecor[實際]) -> NT$0.00 | E33: =TBL_FlowersAndDecor[[#Totals],[預估]]-TBL_FlowersAndDecor[[#Totals],[實際]] -> NT$3,000.00
B36: 音樂 | C36: 預估 | D36: 實際 | E36: 差異
B37: 典禮樂手 | C37: NT$700.00 | E37: =IF(OR(TBL_Music[[#This Row],[預估]]="",TBL_Music[[#This Row],[實際]]=""),"",TBL_Music[[#This Row],[預估]]-TBL_Music[[#This Row],[實際]]) -> 
B38: 雞尾酒時間樂手 | C38: NT$300.00 | E38: =IF(OR(TBL_Music[[#This Row],[預估]]="",TBL_Music[[#This Row],[實際]]=""),"",TBL_Music[[#This Row],[預估]]-TBL_Music[[#This Row],[實際]]) -> 
B39: 接待處樂團、DJ 或娛樂 | C39: NT$200.00 | E39: =IF(OR(TBL_Music[[#This Row],[預估]]="",TBL_Music[[#This Row],[實際]]=""),"",TBL_Music[[#This Row],[預估]]-TBL_Music[[#This Row],[實際]]) -> 
B40: 音響系統或舞池租借 | C40: NT$400.00 | E40: =IF(OR(TBL_Music[[#This Row],[預估]]="",TBL_Music[[#This Row],[實際]]=""),"",TBL_Music[[#This Row],[預估]]-TBL_Music[[#This Row],[實際]]) -> 
B41: 雜項費用 | C41: NT$200.00 | E41: =IF(OR(TBL_Music[[#This Row],[預估]]="",TBL_Music[[#This Row],[實際]]=""),"",TBL_Music[[#This Row],[預估]]-TBL_Music[[#This Row],[實際]]) -> 
B42: 音樂總計 | C42: =SUBTOTAL(109,TBL_Music[預估]) -> NT$1,800.00 | D42: =SUBTOTAL(109,TBL_Music[實際]) -> NT$0.00 | E42: =TBL_Music[[#Totals],[預估]]-TBL_Music[[#Totals],[實際]] -> NT$1,800.00
B45: 攝影與錄影 | C45: 預估 | D45: 實際 | E45: 差異
B46: 攝影 | C46: NT$1,000.00 | E46: =IF(OR(TBL_PhotographsAndVideo[[#This Row],[預估]]="",TBL_PhotographsAndVideo[[#This Row],[實際]]=""),"",TBL_PhotographsAndVideo[[#This Row],[預估]]-TBL_PhotographsAndVideo[[#This Row],[實際]]) -> 
B47: 錄影 | C47: NT$800.00 | E47: =IF(OR(TBL_PhotographsAndVideo[[#This Row],[預估]]="",TBL_PhotographsAndVideo[[#This Row],[實際]]=""),"",TBL_PhotographsAndVideo[[#This Row],[預估]]-TBL_PhotographsAndVideo[[#This Row],[實際]]) -> 
B48: 其他印刷品和相簿 | C48: NT$500.00 | E48: =IF(OR(TBL_PhotographsAndVideo[[#This Row],[預估]]="",TBL_PhotographsAndVideo[[#This Row],[實際]]=""),"",TBL_PhotographsAndVideo[[#This Row],[預估]]-TBL_PhotographsAndVideo[[#This Row],[實際]]) -> 
B49: 雜項費用 | C49: NT$200.00 | E49: =IF(OR(TBL_PhotographsAndVideo[[#This Row],[預估]]="",TBL_PhotographsAndVideo[[#This Row],[實際]]=""),"",TBL_PhotographsAndVideo[[#This Row],[預估]]-TBL_PhotographsAndVideo[[#This Row],[實際]]) -> 
B50: 攝影與錄影總計 | C50: =SUBTOTAL(109,TBL_PhotographsAndVideo[預估]) -> NT$2,500.00 | D50: =SUBTOTAL(109,TBL_PhotographsAndVideo[實際]) -> NT$0.00 | E50: =TBL_PhotographsAndVideo[[#Totals],[預估]]-TBL_PhotographsAndVideo[[#Totals],[實際]] -> NT$2,500.00
B53: 回禮與贈禮 | C53: 預估 | D53: 實際 | E53: 差異
B54: 歡迎禮 | C54: NT$700.00 | E54: =IF(OR(TBL_FavorsAndGifts[[#This Row],[預估]]="",TBL_FavorsAndGifts[[#This Row],[實際]]=""),"",TBL_FavorsAndGifts[[#This Row],[預估]]-TBL_FavorsAndGifts[[#This Row],[實際]]) -> 
B55: 派對禮 | C55: NT$200.00 | E55: =IF(OR(TBL_FavorsAndGifts[[#This Row],[預估]]="",TBL_FavorsAndGifts[[#This Row],[實際]]=""),"",TBL_FavorsAndGifts[[#This Row],[預估]]-TBL_FavorsAndGifts[[#This Row],[實際]]) -> 
B56: 雜項費用 | C56: NT$200.00 | E56: =IF(OR(TBL_FavorsAndGifts[[#This Row],[預估]]="",TBL_FavorsAndGifts[[#This Row],[實際]]=""),"",TBL_FavorsAndGifts[[#This Row],[預估]]-TBL_FavorsAndGifts[[#This Row],[實際]]) -> 
B57: 回禮與贈禮總計 | C57: =SUBTOTAL(109,TBL_FavorsAndGifts[預估]) -> NT$1,100.00 | D57: =SUBTOTAL(109,TBL_FavorsAndGifts[實際]) -> NT$0.00 | E57: =TBL_FavorsAndGifts[[#Totals],[預估]]-TBL_FavorsAndGifts[[#Totals],[實際]] -> NT$1,100.00
B60: 典禮 | C60: 預估 | D60: 實際 | E60: 差異
B61: 場地費用 | C61: NT$500.00 | E61: =IF(OR(TBL_Ceremony[[#This Row],[預估]]="",TBL_Ceremony[[#This Row],[實際]]=""),"",TBL_Ceremony[[#This Row],[預估]]-TBL_Ceremony[[#This Row],[實際]]) -> 
B62: 主婚人費用或教堂捐贈 | C62: NT$200.00 | E62: =IF(OR(TBL_Ceremony[[#This Row],[預估]]="",TBL_Ceremony[[#This Row],[實際]]=""),"",TBL_Ceremony[[#This Row],[預估]]-TBL_Ceremony[[#This Row],[實際]]) -> 
B63: 雜項費用 | C63: NT$100.00 | E63: =IF(OR(TBL_Ceremony[[#This Row],[預估]]="",TBL_Ceremony[[#This Row],[實際]]=""),"",TBL_Ceremony[[#This Row],[預估]]-TBL_Ceremony[[#This Row],[實際]]) -> 
B64: 典禮總計 | C64: =SUBTOTAL(109,TBL_Ceremony[預估]) -> NT$800.00 | D64: =SUBTOTAL(109,TBL_Ceremony[實際]) -> NT$0.00 | E64: =TBL_Ceremony[[#Totals],[預估]]-TBL_Ceremony[[#Totals],[實際]] -> NT$800.00
B67: 文具信箋 | C67: 預估 | D67: 實際 | E67: 差異
B68: 喜帖 | C68: NT$50.00 | E68: =IF(OR(TBL_Stationery[[#This Row],[預估]]="",TBL_Stationery[[#This Row],[實際]]=""),"",TBL_Stationery[[#This Row],[預估]]-TBL_Stationery[[#This Row],[實際]]) -> 
B69: 邀請和與會者 | C69: NT$100.00 | E69: =IF(OR(TBL_Stationery[[#This Row],[預估]]="",TBL_Stationery[[#This Row],[實際]]=""),"",TBL_Stationery[[#This Row],[預估]]-TBL_Stationery[[#This Row],[實際]]) -> 
B70: 流程手冊 | C70: NT$50.00 | E70: =IF(OR(TBL_Stationery[[#This Row],[預估]]="",TBL_Stationery[[#This Row],[實際]]=""),"",TBL_Stationery[[#This Row],[預估]]-TBL_Stationery[[#This Row],[實際]]) -> 
B71: 座位表和座位卡 | C71: NT$50.00 | E71: =IF(OR(TBL_Stationery[[#This Row],[預估]]="",TBL_Stationery[[#This Row],[實際]]=""),"",TBL_Stationery[[#This Row],[預估]]-TBL_Stationery[[#This Row],[實際]]) -> 
B72: 菜單 | C72: NT$50.00 | E72: =IF(OR(TBL_Stationery[[#This Row],[預估]]="",TBL_Stationery[[#This Row],[實際]]=""),"",TBL_Stationery[[#This Row],[預估]]-TBL_Stationery[[#This Row],[實際]]) -> 
B73: 謝卡 | C73: NT$50.00 | E73: =IF(OR(TBL_Stationery[[#This Row],[預估]]="",TBL_Stationery[[#This Row],[實際]]=""),"",TBL_Stationery[[#This Row],[預估]]-TBL_Stationery[[#This Row],[實際]]) -> 
B74: 郵資 | C74: NT$50.00 | E74: =IF(OR(TBL_Stationery[[#This Row],[預估]]="",TBL_Stationery[[#This Row],[實際]]=""),"",TBL_Stationery[[#This Row],[預估]]-TBL_Stationery[[#This Row],[實際]]) -> 
B75: 雜項費用 | C75: NT$100.00 | E75: =IF(OR(TBL_Stationery[[#This Row],[預估]]="",TBL_Stationery[[#This Row],[實際]]=""),"",TBL_Stationery[[#This Row],[預估]]-TBL_Stationery[[#This Row],[實際]]) -> 
B76: 文具信箋總計 | C76: =SUBTOTAL(109,TBL_Stationery[預估]) -> NT$500.00 | D76: =SUBTOTAL(109,TBL_Stationery[實際]) -> NT$0.00 | E76: =TBL_Stationery[[#Totals],[預估]]-TBL_Stationery[[#Totals],[實際]] -> NT$500.00
B79: 結婚戒指 | C79: 預估 | D79: 實際 | E79: 差異
B80: 結婚戒指 | C80: NT$1,000.00 | E80: =IF(OR(TBL_WeddingRings[[#This Row],[預估]]="",TBL_WeddingRings[[#This Row],[實際]]=""),"",TBL_WeddingRings[[#This Row],[預估]]-TBL_WeddingRings[[#This Row],[實際]]) -> 
B81: 戒指配飾 | C81: NT$100.00 | E81: =IF(OR(TBL_WeddingRings[[#This Row],[預估]]="",TBL_WeddingRings[[#This Row],[實際]]=""),"",TBL_WeddingRings[[#This Row],[預估]]-TBL_WeddingRings[[#This Row],[實際]]) -> 
B82: 結婚戒指總計 | C82: =SUBTOTAL(109,TBL_WeddingRings[預估]) -> NT$1,100.00 | D82: =SUBTOTAL(109,TBL_WeddingRings[實際]) -> NT$0.00 | E82: =TBL_WeddingRings[[#Totals],[預估]]-TBL_WeddingRings[[#Totals],[實際]] -> NT$1,100.00
B85: 交通 | C85: 預估 | D85: 實際 | E85: 差異
B86: 主車租借 | C86: NT$100.00 | E86: =IF(OR(TBL_Transportation[[#This Row],[預估]]="",TBL_Transportation[[#This Row],[實際]]=""),"",TBL_Transportation[[#This Row],[預估]]-TBL_Transportation[[#This Row],[實際]]) -> 
B87: 來賓車輛租借 | C87: NT$100.00 | E87: =IF(OR(TBL_Transportation[[#This Row],[預估]]="",TBL_Transportation[[#This Row],[實際]]=""),"",TBL_Transportation[[#This Row],[預估]]-TBL_Transportation[[#This Row],[實際]]) -> 
B88: 外地來賓交通 | C88: NT$100.00 | E88: =IF(OR(TBL_Transportation[[#This Row],[預估]]="",TBL_Transportation[[#This Row],[實際]]=""),"",TBL_Transportation[[#This Row],[預估]]-TBL_Transportation[[#This Row],[實際]]) -> 
B89: 代客停車 | C89: NT$50.00 | E89: =IF(OR(TBL_Transportation[[#This Row],[預估]]="",TBL_Transportation[[#This Row],[實際]]=""),"",TBL_Transportation[[#This Row],[預估]]-TBL_Transportation[[#This Row],[實際]]) -> 
B90: 雜項費用 | C90: NT$100.00 | E90: =IF(OR(TBL_Transportation[[#This Row],[預估]]="",TBL_Transportation[[#This Row],[實際]]=""),"",TBL_Transportation[[#This Row],[預估]]-TBL_Transportation[[#This Row],[實際]]) -> 
B91: 交通總計 | C91: =SUBTOTAL(109,TBL_Transportation[預估]) -> NT$450.00 | D91: =SUBTOTAL(109,TBL_Transportation[實際]) -> NT$0.00 | E91: =TBL_Transportation[[#Totals],[預估]]-TBL_Transportation[[#Totals],[實際]] -> NT$450.00
